bitfinex-derivatives/quotes_BTCF0:USTF0_20250729
["timestamp","ask_amount","ask_price","bid_price","bid_amount"]
[1753831073798,0.81660597,117910.0,117900.0,0.818768]
[1753831074299,0.81660597,117910.0,117880.0,0.57878137]
[1753831074300,0.2894767,117890.0,117880.0,0.57878137]
[1753831074501,0.80846477,117890.0,117880.0,1.30215137]
[1753831075401,0.5946967,117890.0,117880.0,1.30215137]
[1753831075601,0.80846477,117890.0,117880.0,1.30515137]
[1753831075798,0.80846477,117890.0,117880.0,1.1985325]
[1753831076601,0.80846477,117890.0,117880.0,1.1975325]
[1753831077000,0.80846477,117890.0,117880.0,1.1955325]
[1753831083403,0.80846477,117890.0,117880.0,1.30214336]
[1753831091711,0.5946967,117890.0,117880.0,1.30214336]
[1753831091909,0.80846477,117890.0,117880.0,1.30214336]
[1753831092817,0.83530242,117890.0,117880.0,1.30214336]
[1753831095910,0.83530242,117890.0,117880.0,0.58253156]
[1753831096116,0.83530242,117890.0,117880.0,1.25921156]
[1753831096915,0.83530242,117890.0,117880.0,1.1526007]
[1753831097715,0.83530242,117890.0,117880.0,1.25921156]
[1753831097916,0.83530242,117890.0,117880.0,1.1526007]
[1753831098312,0.83530242,117890.0,117880.0,1.25921156]
[1753831099216,0.83530242,117890.0,117880.0,0.4759207]
[1753831099415,0.83530242,117890.0,117880.0,1.1526007]
[1753831101520,0.83530242,117890.0,117880.0,1.21304156]
[1753831102019,0.83530242,117890.0,117880.0,1.1064307]
[1753831102317,0.83530242,117890.0,117880.0,1.1516606]
[1753831102718,0.83530242,117890.0,117880.0,1.25827146]
[1753831103114,0.83530242,117890.0,117880.0,1.1516606]
[1753831104719,0.83530242,117890.0,117880.0,1.25827146]
[1753831110522,0.83530242,117890.0,117880.0,1.1516606]
[1753831113625,0.83530242,117890.0,117880.0,0.4749806]
[1753831113826,0.83530242,117890.0,117880.0,1.1516606]
[1753831114126,0.83530242,117890.0,117880.0,0.4749806]
[1753831114326,0.83530242,117890.0,117880.0,1.1516206]
[1753831115728,0.83530242,117890.0,117880.0,1.25823146]
[1753831115928,0.5946967,117890.0,117880.0,1.25823146]
[1753831116228,0.83530242,117890.0,117880.0,1.1516206]
[1753831120234,0.83530242,117890.0,117880.0,1.25831629]
[1753831120534,0.5946967,117890.0,117880.0,1.25831629]
[1753831120830,0.83530242,117890.0,117880.0,1.25831629]
[1753831123730,0.83530242,117890.0,117880.0,1.25831394]
[1753831124932,0.83530242,117890.0,117880.0,1.1516206]
[1753831125638,0.53028242,117890.0,117880.0,1.39222632]
[1753831126330,0.57552242,117890.0,117880.0,1.39222632]
[1753831127235,0.57552242,117890.0,117880.0,1.39422632]
[1753831127932,0.57552242,117890.0,117880.0,1.39522632]
[1753831128534,0.82357242,117890.0,117880.0,1.1546206]
[1753831129233,0.82357242,117890.0,117880.0,1.26128218]
[1753831131535,0.64905242,117890.0,117880.0,1.26128218]
[1753831131839,0.57552182,117890.0,117880.0,1.5018879]
[1753831132139,0.12,117890.0,117880.0,1.39522632]
[1753831133138,0.12,117890.0,117880.0,1.41240057]
[1753831134538,0.12,117890.0,117880.0,1.51904825]
[1753831135437,0.78838372,117910.0,117900.0,0.2909618]
[1753831135639,0.60509372,117910.0,117900.0,1.1465018]
[1753831135841,0.65033372,117910.0,117900.0,1.1465018]
[1753831136042,0.79217372,117910.0,117900.0,1.1465018]
[1753831136343,0.89838372,117910.0,117900.0,1.1465018]
[1753831136534,0.81355452,117910.0,117900.0,1.1465018]
[1753831136837,0.39584572,117910.0,117900.0,1.38710752]
[1753831137237,0.56649302,117910.0,117900.0,1.38710752]
[1753831137437,0.56749302,117910.0,117900.0,1.38710752]
[1753831137737,0.59919302,117910.0,117900.0,1.38710752]
[1753831138040,0.76755302,117910.0,117900.0,1.38710752]
[1753831138236,0.81554302,117910.0,117900.0,1.38710752]
[1753831138438,0.81554302,117910.0,117900.0,1.40402389]
[1753831138639,0.75732302,117910.0,117900.0,1.40402389]
[1753831139236,0.75732302,117910.0,117900.0,1.16341817]
[1753831139828,0.5749373,117910.0,117900.0,1.16341817]
[1753831140033,0.81554302,117910.0,117900.0,1.16341817]
[1753831140241,0.81554302,117910.0,117900.0,1.40402389]
[1753831140641,0.81554302,117910.0,117900.0,1.16341817]
[1753831140842,0.81454302,117910.0,117900.0,1.16341817]
[1753831141038,0.5739373,117910.0,117900.0,1.16341817]
[1753831141345,0.81354302,117910.0,117900.0,1.40402389]
[1753831142444,0.5729373,117910.0,117900.0,1.16341817]
[1753831142743,0.81354302,117910.0,117900.0,1.40402389]
[1753831143345,0.81354302,117910.0,117900.0,1.51059608]
[1753831143746,0.81354302,117910.0,117900.0,1.26999036]
[1753831144048,0.81354302,117910.0,117900.0,1.51059608]
[1753831144243,0.81354302,117910.0,117900.0,1.26999036]
[1753831144443,0.81354302,117910.0,117900.0,1.16341817]
[1753831147154,0.5729373,117910.0,117900.0,1.16341817]
[1753831147352,0.81354302,117910.0,117900.0,1.16341817]
[1753831151360,0.81354302,117910.0,117900.0,1.26985985]
[1753831151759,0.5729373,117910.0,117900.0,1.51046557]
[1753831151956,0.81354302,117910.0,117900.0,1.51046557]
[1753831152356,0.81354302,117910.0,117900.0,1.26985985]
[1753831152557,0.81354302,117910.0,117900.0,1.51046557]
[1753831156961,0.81354302,117910.0,117900.0,1.40402389]
[1753831157961,0.81354302,117910.0,117900.0,1.51047181]
[1753831159063,0.52025302,117910.0,117900.0,1.51047181]
[1753831159259,0.56550302,117910.0,117900.0,1.51047181]
[1753831159465,0.59748302,117910.0,117900.0,1.51047181]
[1753831159664,0.81244302,117910.0,117900.0,1.51047181]
[1753831160366,0.5718373,117910.0,117900.0,1.51047181]
[1753831160568,0.81244302,117910.0,117900.0,1.51047181]
[1753831160766,0.11,117910.0,117900.0,1.51047181]
[1753831160956,0.11,117910.0,117900.0,1.75107753]
[1753831161162,0.11,117910.0,117900.0,1.51047181]
[1753831161765,0.45550062,117920.0,117910.0,0.1696473]
[1753831161964,0.82242862,117920.0,117910.0,0.81072094]
[1753831162164,0.16525,117920.0,117910.0,0.81072094]
[1753831162364,0.12,117920.0,117910.0,0.70427302]
[1753831162564,0.5013593,117940.0,117930.0,0.4636386]
[1753831162768,0.85196502,117940.0,117930.0,1.15851267]
[1753831162969,0.89721502,117940.0,117930.0,1.15851267]
[1753831163370,0.89721502,117940.0,117930.0,1.16699288]
[1753831163768,0.89921502,117940.0,117930.0,1.16699288]
[1753831164271,0.89921502,117940.0,117930.0,1.23524903]
[1753831164963,0.85681192,117940.0,117930.0,1.23524903]
[1753831165269,0.85681192,117940.0,117930.0,1.47585475]
[1753831166164,0.85681192,117940.0,117930.0,1.23524903]
[1753831166372,0.85681192,117940.0,117930.0,1.47585475]
[1753831166672,0.85681192,117940.0,117930.0,1.23524903]
[1753831167871,0.85881192,117940.0,117930.0,1.23524903]
[1753831170570,0.6182062,117940.0,117930.0,1.23524903]
[1753831170770,0.85881192,117940.0,117930.0,1.23524903]
[1753831171375,0.575805,117940.0,117930.0,1.23524903]
[1753831171565,0.64679572,117940.0,117930.0,1.23524903]
[1753831172270,0.81640012,117940.0,117930.0,1.47585475]
[1753831172469,0.64679572,117940.0,117930.0,1.47585475]
[1753831173674,0.64679572,117940.0,117930.0,1.58230267]
[1753831175372,0.64679572,117940.0,117930.0,1.47585475]
[1753831175773,0.64679572,117940.0,117930.0,1.58230267]
[1753831176673,0.64679572,117940.0,117930.0,1.47585475]
[1753831176973,0.64679572,117940.0,117930.0,1.58230267]
[1753831177275,0.64679572,117940.0,117930.0,1.47585475]
[1753831179077,0.64679572,117940.0,117930.0,1.23524903]
[1753831179376,0.64679572,117940.0,117930.0,1.47585475]
[1753831181078,0.64679572,117940.0,117930.0,1.23524903]
[1753831181378,0.64679572,117940.0,117930.0,1.47585475]
[1753831182479,0.81640012,117940.0,117930.0,1.23524903]
[1753831182979,0.81640012,117940.0,117930.0,1.34169695]
[1753831187287,0.5757944,117940.0,117930.0,1.34169695]
[1753831187478,0.81640012,117940.0,117930.0,1.34169695]
[1753831190487,0.5757944,117940.0,117930.0,1.34169695]
[1753831190686,0.81640012,117940.0,117930.0,1.34169695]
[1753831192588,0.114,117940.0,117930.0,1.82290839]
[1753831193184,0.114,117940.0,117930.0,1.58230267]
[1753831193889,0.35460572,117940.0,117930.0,1.58230267]
[1753831194187,0.16059,117940.0,117930.0,1.58230267]
[1753831194488,0.40119572,117940.0,117930.0,1.58230267]
[1753831196282,0.16059,117940.0,117930.0,1.58230267]
[1753831196482,0.40119572,117940.0,117930.0,1.58230267]
[1753831198382,0.33119572,117940.0,117930.0,1.58230267]
[1753831198587,0.09059,117940.0,117930.0,1.58230267]
[1753831198988,0.33119572,117940.0,117930.0,1.58230267]
[1753831199183,0.16614,117960.0,117950.0,0.1070698]
[1753831199388,0.39737,117960.0,117950.0,1.27946062]
[1753831199588,0.63797572,117960.0,117950.0,1.27946062]
[1753831200582,0.63997572,117960.0,117950.0,1.27946062]
[1753831201692,0.64097572,117960.0,117950.0,1.27946062]
[1753831205190,0.29037,117960.0,117950.0,1.27946062]
[1753831205395,0.54097572,117960.0,117950.0,1.27946062]
[1753831207996,0.71055142,117960.0,117950.0,0.3190574]
[1753831208195,0.71055142,117960.0,117950.0,0.9965774]
[1753831208598,0.4699457,117960.0,117950.0,0.9965774]
[1753831208800,0.30037,117960.0,117950.0,0.9965774]
[1753831209008,0.54097572,117960.0,117950.0,0.9965774]
[1753831209208,0.71055142,117960.0,117950.0,1.23718312]
[1753831211710,0.54097572,117960.0,117950.0,1.23718312]
[1753831212010,0.64097572,117960.0,117950.0,1.23774312]
[1753831213411,0.53097572,117960.0,117950.0,1.23774312]
[1753831215615,0.54097572,117960.0,117950.0,1.23774312]
[1753831216714,0.54097572,117960.0,117950.0,1.34419104]
[1753831217515,0.30037,117960.0,117950.0,1.34419104]
[1753831217816,0.54097572,117960.0,117950.0,1.34419104]
[1753831218116,0.30037,117960.0,117950.0,1.34419104]
[1753831218506,0.54097572,117960.0,117950.0,1.34419104]
[1753831219104,0.54097572,117960.0,117950.0,1.10358532]
[1753831219309,0.54097572,117960.0,117950.0,1.34419104]
[1753831220914,0.30037,117960.0,117950.0,1.34419104]
[1753831221119,0.54097572,117960.0,117950.0,1.34419104]
[1753831223820,0.54097572,117960.0,117950.0,1.10358532]
[1753831224120,0.54097572,117960.0,117950.0,1.34419104]
[1753831224915,0.17914,117960.0,117950.0,1.34419104]
[1753831225216,0.41974572,117960.0,117950.0,1.34419104]
[1753831225421,0.2492,117960.0,117950.0,1.34419104]
[1753831225719,0.54634572,117960.0,117950.0,1.34419104]
[1753831227825,0.54634572,117960.0,117950.0,1.10358532]
[1753831228012,0.54634572,117960.0,117950.0,1.34419104]
[1753831231027,0.30574,117960.0,117950.0,1.36152649]
[1753831231230,0.54634572,117960.0,117950.0,1.25507857]
[1753831231728,0.54634572,117960.0,117950.0,1.36152317]
[1753831232224,0.30574,117960.0,117950.0,1.36152317]
[1753831232625,0.54634572,117960.0,117950.0,1.36152317]
[1753831233426,0.30574,117960.0,117950.0,1.36152317]
[1753831233625,0.54634572,117960.0,117950.0,1.36152317]
[1753831233827,0.54634572,117960.0,117950.0,1.25507857]
[1753831235327,0.54634572,117960.0,117950.0,1.01447285]
[1753831235528,0.54634572,117960.0,117950.0,1.25507857]
[1753831236428,0.54634572,117960.0,117950.0,1.40717455]
[1753831238732,0.54634572,117960.0,117950.0,1.25507857]
[1753831242735,0.54634572,117960.0,117950.0,1.01447285]
[1753831243235,0.54634572,117960.0,117950.0,1.25507857]
[1753831243236,0.30574,117960.0,117950.0,1.25507857]
[1753831243437,0.54634572,117960.0,117950.0,1.25507857]
[1753831244534,0.54634572,117960.0,117950.0,1.36160836]
[1753831247537,0.54634572,117960.0,117950.0,1.12100264]
[1753831247738,0.54634572,117960.0,117950.0,1.36160836]
[1753831248733,0.54634572,117960.0,117950.0,1.25507857]
[1753831249345,0.30574,117960.0,117950.0,1.25507857]
[1753831249642,0.54634572,117960.0,117950.0,1.25507857]
[1753831250235,0.30574,117960.0,117950.0,1.25507857]
[1753831250436,0.54634572,117960.0,117950.0,1.25507857]
[1753831251542,0.30574,117960.0,117950.0,1.25507857]
[1753831251841,0.54634572,117960.0,117950.0,1.25507857]
[1753831252539,0.30574,117960.0,117950.0,1.25507857]
[1753831252742,0.54634572,117960.0,117950.0,1.25507857]
[1753831253342,0.54634572,117960.0,117950.0,1.01447285]
[1753831253545,0.54634572,117960.0,117950.0,1.25507857]
[1753831254845,0.54634572,117960.0,117950.0,1.40717455]
[1753831259645,0.54634572,117960.0,117950.0,1.25507857]
[1753831259846,0.30574,117960.0,117950.0,1.25507857]
[1753831260046,0.54634572,117960.0,117950.0,1.25507857]
[1753831263042,0.30574,117960.0,117950.0,1.25507857]
[1753831263242,0.54634572,117960.0,117950.0,1.01447285]
[1753831263441,0.54634572,117960.0,117950.0,1.25507857]
[1753831266951,0.54634572,117960.0,117950.0,1.40717455]
[1753831269549,0.54634572,117960.0,117950.0,1.25507857]
[1753831273560,0.54634572,117960.0,117950.0,1.01447285]
[1753831273748,0.54634572,117960.0,117950.0,1.25507857]
[1753831282763,0.54634572,117960.0,117950.0,1.01447285]
[1753831282962,0.54634572,117960.0,117950.0,1.25507857]
[1753831287163,0.54634572,117960.0,117950.0,1.36160194]
[1753831288366,0.54634572,117960.0,117950.0,1.25507857]
[1753831294272,0.71592172,117960.0,117950.0,0.57699857]
[1753831294571,0.71592172,117960.0,117950.0,1.25367857]
[1753831295370,0.54634572,117960.0,117950.0,1.25367857]
[1753831295871,0.54634572,117960.0,117950.0,1.40577455]
[1753831299773,0.54634572,117960.0,117950.0,1.16516883]
[1753831300071,0.54634572,117960.0,117950.0,1.40577455]
[1753831304072,0.54634572,117960.0,117950.0,1.16516883]
[1753831304274,0.54634572,117960.0,117950.0,1.40577455]
[1753831307077,0.54634572,117960.0,117950.0,1.25367857]
[1753831313483,0.54634572,117960.0,117950.0,1.40577455]
[1753831314287,0.54634572,117960.0,117950.0,1.25367857]
[1753831318790,0.37372572,117960.0,117950.0,1.25367857]
[1753831318992,0.05959,117960.0,117950.0,1.25367857]
[1753831320690,0.05959,117960.0,117950.0,1.01307285]
[1753831320894,0.05959,117960.0,117950.0,1.25367857]
[1753831321197,0.19508,117960.0,117950.0,1.25367857]
[1753831321398,0.24982,117960.0,117950.0,1.25367857]
[1753831321597,0.49042572,117960.0,117950.0,1.25367857]
[1753831321800,0.53250572,117960.0,117950.0,1.25367857]
[1753831331995,0.2919,117960.0,117950.0,1.25367857]
[1753831335303,0.2919,117960.0,117950.0,1.36015657]
[1753831338704,0.2919,117960.0,117950.0,1.25367857]
[1753831339206,0.2919,117960.0,117950.0,1.01291285]
[1753831339406,0.53250572,117960.0,117950.0,1.25351857]
[1753831340599,0.53250572,117960.0,117950.0,1.01291285]
[1753831340799,0.53250572,117960.0,117950.0,1.25351857]
[1753831342805,0.53250572,117960.0,117950.0,1.36002847]
[1753831344109,0.2919,117960.0,117950.0,1.25351857]
[1753831344408,0.53250572,117960.0,117950.0,1.25351857]
[1753831347209,0.2919,117960.0,117950.0,1.25351857]
[1753831348506,0.2919,117960.0,117950.0,1.01291285]
[1753831348709,0.2919,117960.0,117950.0,1.25351857]
[1753831353206,0.2919,117960.0,117950.0,1.25367679]
[1753831353705,0.53250572,117960.0,117950.0,1.25367679]
[1753831355012,0.2919,117960.0,117950.0,1.25367679]
[1753831362118,0.2919,117960.0,117950.0,1.01307107]
[1753831362306,0.2919,117960.0,117950.0,1.25367679]
[1753831365921,0.53250572,117960.0,117950.0,1.25367679]
[1753831366826,0.2919,117960.0,117950.0,1.36017844]
[1753831367027,0.53250572,117960.0,117950.0,1.36017844]
[1753831373633,0.53250572,117960.0,117950.0,1.25367679]
[1753831375532,0.53250572,117960.0,117950.0,1.40577277]
[1753831377033,0.53250572,117960.0,117950.0,1.25367679]
[1753831378637,0.53250572,117960.0,117950.0,1.40589669]
[1753831380136,0.2919,117960.0,117950.0,1.40589669]
[1753831380330,0.53250572,117960.0,117950.0,1.40589669]
[1753831381735,0.2919,117960.0,117950.0,1.40589669]
[1753831382134,0.53250572,117960.0,117950.0,0.48877097]
[1753831382325,0.53250572,117960.0,117950.0,1.40565669]
[1753831383036,0.2919,117960.0,117950.0,1.40565669]
[1753831383239,0.53250572,117960.0,117950.0,1.40565669]
[1753831384941,0.2919,117960.0,117950.0,1.40565669]
[1753831386240,0.2919,117960.0,117950.0,2.57813669]
[1753831387541,0.2919,117960.0,117950.0,2.42591679]
[1753831389058,0.2919,117960.0,117950.0,2.57813669]
[1753831389755,0.2919,117960.0,117950.0,1.40565669]
[1753831394457,0.2919,117960.0,117950.0,1.16505097]
[1753831394656,0.2919,117960.0,117950.0,1.40565669]
[1753831394959,0.53250572,117960.0,117950.0,1.40565669]
[1753831396557,0.53250572,117960.0,117950.0,1.25343679]
[1753831396759,0.53250572,117960.0,117950.0,1.25331679]
[1753831401166,0.53250572,117960.0,117950.0,1.40553669]
[1753831401965,0.53250572,117960.0,117950.0,1.25331679]
[1753831404366,0.53250572,117960.0,117950.0,1.25323679]
[1753831406067,0.53250572,117960.0,117950.0,1.40545669]
[1753831407163,0.93940694,117960.0,117950.0,0.42409867]
[1753831407370,0.52922572,117960.0,117950.0,1.05774117]
[1753831407869,0.52922572,117960.0,117950.0,1.29834689]
[1753831408066,0.52922572,117960.0,117950.0,0.62230689]
[1753831408272,0.52922572,117960.0,117950.0,1.29834689]
[1753831408670,0.69880122,117960.0,117950.0,1.29834689]
[1753831408972,0.52922572,117960.0,117950.0,1.29834689]
[1753831410672,0.28862,117960.0,117950.0,1.29834689]
[1753831410873,0.52922572,117960.0,117950.0,1.29834689]
[1753831411268,0.28862,117960.0,117950.0,1.29834689]
[1753831412974,0.28862,117960.0,117950.0,1.05774117]
[1753831413275,0.28862,117960.0,117950.0,1.29834689]
[1753831415572,0.05959,117960.0,117950.0,1.29834689]
[1753831416180,0.1239,117960.0,117950.0,1.29834689]
[1753831416373,0.19176,117960.0,117950.0,1.14612699]
[1753831416574,0.19176,117960.0,117950.0,1.29833878]
[1753831417283,0.23619,117960.0,117950.0,1.29833878]
[1753831417472,0.04959,117960.0,117950.0,1.14612699]
[1753831422482,0.1139,117960.0,117950.0,1.14612699]
[1753831423984,0.003,117960.0,117950.0,1.14612699]
[1753831424183,0.04927,117960.0,117950.0,1.14612699]
[1753831424784,0.04927,117960.0,117950.0,1.29833502]
[1753831426284,0.04927,117960.0,117950.0,1.14612699]
[1753831429791,0.04927,117960.0,117950.0,0.90552127]
[1753831429983,0.04927,117960.0,117950.0,1.14612699]
[1753831430692,0.11249,117960.0,117950.0,1.14612699]
[1753831430889,0.27232,117960.0,117950.0,1.05766376]
[1753831431090,0.27232,117960.0,117950.0,1.29806948]
[1753831431291,0.51292572,117960.0,117950.0,1.29806948]
[1753831431894,0.27232,117960.0,117950.0,1.29806948]
[1753831432193,0.51292572,117960.0,117950.0,1.29806948]
[1753831433292,0.27232,117960.0,117950.0,1.29806948]
[1753831433592,0.51292572,117960.0,117950.0,1.29806948]
[1753831435093,0.27232,117960.0,117950.0,1.29806948]
[1753831435295,0.51292572,117960.0,117950.0,1.29806948]
[1753831439104,0.27232,117960.0,117950.0,1.29806948]
[1753831442101,0.51292572,117960.0,117950.0,1.14592699]
[1753831443305,0.27232,117960.0,117950.0,1.14592699]
[1753831443706,0.27232,117960.0,117950.0,1.29806948]
[1753831445310,0.27232,117960.0,117950.0,1.14592699]
[1753831446210,0.27232,117960.0,117950.0,1.29806948]
[1753831450711,0.51292572,117960.0,117950.0,1.29806948]
[1753831451813,0.51292572,117960.0,117950.0,1.14592699]
[1753831453315,0.27232,117960.0,117950.0,1.14592699]
[1753831454317,0.27232,117960.0,117950.0,1.29815686]
[1753831455922,0.27232,117960.0,117950.0,1.14592699]
[1753831458222,0.51292572,117960.0,117950.0,0.22948127]
[1753831458423,0.51292572,117960.0,117950.0,1.14572699]
[1753831459217,0.27232,117960.0,117950.0,1.14572699]
[1753831459423,0.51292572,117960.0,117950.0,1.14572699]
[1753831460619,0.51292572,117960.0,117950.0,1.29795686]
[1753831462324,0.51292572,117960.0,117950.0,1.14572699]
[1753831464325,0.51292572,117960.0,117950.0,1.297974]
[1753831465729,0.51292572,117960.0,117950.0,1.05736828]
[1753831466028,0.51292572,117960.0,117950.0,1.297974]
[1753831467326,0.27232,117960.0,117950.0,1.297974]
[1753831467531,0.51292572,117960.0,117950.0,1.297974]
[1753831467826,0.27232,117960.0,117950.0,1.297974]
[1753831468035,0.04927,117960.0,117950.0,1.297974]
[1753831472732,0.21968,117960.0,117950.0,1.297974]
[1753831472934,0.26995,117960.0,117950.0,1.297974]
[1753831473136,0.26995,117960.0,117950.0,1.14572699]
[1753831473833,0.26995,117960.0,117950.0,1.14538554]
[1753831474037,0.26995,117960.0,117950.0,1.29763255]
[1753831476339,0.26995,117960.0,117950.0,1.14538554]
[1753831481940,0.26995,117960.0,117950.0,1.29758029]
[1753831482740,0.26995,117960.0,117950.0,1.14538554]
[1753831500959,0.26995,117960.0,117950.0,0.90477982]
[1753831501259,0.26995,117960.0,117950.0,1.14538554]
[1753831502568,0.26995,117960.0,117950.0,1.29760466]
[1753831503569,0.26995,117960.0,117950.0,0.38135894]
[1753831503775,0.26995,117960.0,117950.0,1.29724466]
[1753831504070,0.26995,117960.0,117950.0,1.14502554]
[1753831504968,0.26995,117960.0,117950.0,1.29724466]
[1753831514376,0.26995,117960.0,117950.0,1.05663894]
[1753831514675,0.26995,117960.0,117950.0,1.29724466]
[1753831517777,0.26995,117960.0,117950.0,1.14502554]
[1753831518277,0.51055572,117960.0,117950.0,1.14502554]
[1753831518976,0.51055572,117960.0,117950.0,1.29724117]
[1753831520079,0.26995,117960.0,117950.0,1.29724117]
[1753831520378,0.51055572,117960.0,117950.0,1.29724117]
[1753831521976,0.26995,117960.0,117950.0,1.29724117]
[1753831522177,0.51055572,117960.0,117950.0,1.29724117]
[1753831523177,0.51055572,117960.0,117950.0,1.14502554]
[1753831524578,0.51055572,117960.0,117950.0,1.25157573]
[1753831528884,0.51055572,117960.0,117950.0,1.14502554]
[1753831529681,0.51055572,117960.0,117950.0,1.25157661]
[1753831533381,0.51055572,117960.0,117950.0,1.01097089]
[1753831533586,0.51055572,117960.0,117950.0,1.25157661]
[1753831534491,0.51055572,117960.0,117950.0,1.14502554]
[1753831535689,0.26995,117960.0,117950.0,1.14502554]
[1753831535894,0.51055572,117960.0,117950.0,1.14502554]
[1753831538392,0.51055572,117960.0,117950.0,0.90441982]
[1753831538589,0.51055572,117960.0,117950.0,1.14502554]
[1753831539791,0.51055572,117960.0,117950.0,1.29724117]
[1753831540491,1.04073684,117960.0,117950.0,1.05631545]
[1753831540689,1.04073684,117960.0,117950.0,0.33895795]
[1753831540891,1.04073684,117960.0,117950.0,0.25877982]
[1753831541090,1.04073684,117960.0,117950.0,0.93373982]
[1753831541291,1.04073684,117960.0,117950.0,0.67496]
[1753831541493,0.4287198,117950.0,117940.0,0.37780035]
[1753831541697,0.78932552,117950.0,117940.0,1.05276035]
[1753831542098,0.78932552,117950.0,117940.0,0.37780035]
[1753831542296,0.78932552,117950.0,117940.0,1.05276035]
[1753831542497,0.78932552,117950.0,117940.0,0.37780035]
[1753831542697,0.79032552,117950.0,117940.0,1.05276035]
[1753831543395,0.79032552,117950.0,117940.0,0.94619616]
[1753831543695,0.79032552,117950.0,117940.0,1.05276035]
[1753831553012,0.79032552,117950.0,117940.0,0.94619616]
[1753831556823,0.79032552,117950.0,117940.0,0.94615616]
[1753831558516,0.79032552,117950.0,117940.0,1.05272035]
[1753831564420,0.79032552,117950.0,117940.0,1.05268035]
[1753831564620,0.79032552,117950.0,117940.0,1.01027955]
[1753831566523,0.79032552,117950.0,117940.0,0.90371536]
[1753831567828,0.5497198,117950.0,117940.0,0.90371536]
[1753831568027,0.76032552,117950.0,117940.0,0.90371536]
[1753831568528,0.76032552,117950.0,117940.0,1.01027955]
[1753831570438,0.260006,117970.0,117950.0,0.1271862]
[1753831570628,0.460228,117970.0,117960.0,0.93336652]
[1753831570933,0.70083372,117970.0,117960.0,0.93336652]
[1753831571232,0.81451172,117970.0,117960.0,0.93336652]
[1753831574835,0.573906,117970.0,117960.0,0.95072955]
[1753831575035,0.36306,117970.0,117960.0,0.95072955]
[1753831575235,0.5326211,117970.0,117960.0,0.95072955]
[1753831576037,0.77322682,117970.0,117960.0,0.95072955]
[1753831577239,0.5326211,117970.0,117960.0,0.95072955]
[1753831577431,0.77322682,117970.0,117960.0,0.95072955]
[1753831577934,0.5326211,117970.0,117960.0,0.95072955]
[1753831578135,0.77322682,117970.0,117960.0,0.95072955]
[1753831578437,0.60366572,117970.0,117960.0,0.95072955]
[1753831581936,0.60366572,117970.0,117960.0,1.05729374]
[1753831587945,0.36306,117970.0,117960.0,1.05729374]
[1753831588136,0.60366572,117970.0,117960.0,1.05729374]
[1753831589832,0.60366572,117970.0,117960.0,0.95072955]
[1753831591144,0.60366572,117970.0,117960.0,1.05709958]
[1753831595647,0.60366572,117970.0,117960.0,0.95072955]
[1753831596745,0.60366572,117970.0,117960.0,1.10294518]
[1753831597540,0.60366572,117970.0,117960.0,0.95072955]
[1753831599148,0.60366572,117970.0,117960.0,1.10294518]
[1753831603651,0.36306,117970.0,117960.0,1.10294518]
[1753831603951,0.60366572,117970.0,117960.0,0.95072955]
[1753831605653,0.60366572,117970.0,117960.0,1.10294518]
[1753831606455,0.60366572,117970.0,117960.0,0.95072955]
[1753831613461,0.77322682,117970.0,117960.0,0.71012383]
[1753831613759,0.77322682,117970.0,117960.0,1.10294518]
[1753831616062,0.77322682,117970.0,117960.0,0.95072955]
[1753831616260,0.77322682,117970.0,117960.0,1.10190415]
[1753831616560,0.77322682,117970.0,117960.0,0.86129843]
[1753831618256,0.77322682,117970.0,117960.0,1.10190415]
[1753831618664,0.77322682,117970.0,117960.0,0.86129843]
[1753831619057,0.77322682,117970.0,117960.0,1.10190415]
[1753831620862,0.77322682,117970.0,117960.0,1.25411978]
[1753831621168,0.77322682,117970.0,117960.0,1.01351406]
[1753831621362,0.77322682,117970.0,117960.0,1.25411978]
[1753831622463,0.77322682,117970.0,117960.0,1.10190415]
[1753831628468,0.5326211,117970.0,117960.0,1.10190415]
[1753831628673,0.77322682,117970.0,117960.0,1.10190415]
[1753831632981,0.77322682,117970.0,117960.0,1.25411978]
[1753831634586,0.77322682,117970.0,117960.0,1.10190415]
[1753831640894,0.60366572,117970.0,117960.0,1.10190415]
[1753831641390,0.36306,117970.0,117960.0,1.10190415]
[1753831643392,0.36306,117970.0,117960.0,1.25411978]
[1753831644192,0.60366572,117970.0,117960.0,1.25411978]
[1753831648397,0.60366572,117970.0,117960.0,1.01351406]
[1753831648597,0.60366572,117970.0,117960.0,1.25411978]
[1753831649900,0.36306,117970.0,117960.0,1.25411978]
[1753831650199,0.60366572,117970.0,117960.0,1.36072158]
[1753831650596,0.60366572,117970.0,117960.0,1.20850595]
[1753831654100,0.77322682,117970.0,117960.0,1.20850595]
[1753831655001,0.5326211,117970.0,117960.0,1.20850595]
[1753831655202,0.60366572,117970.0,117960.0,1.20850595]
[1753831657403,0.77322682,117970.0,117960.0,1.20850595]
[1753831657603,0.77322682,117970.0,117960.0,0.29354023]
[1753831657804,0.77322682,117970.0,117960.0,1.20814595]
[1753831657997,0.77322682,117970.0,117960.0,1.10154415]
[1753831658902,0.77322682,117970.0,117960.0,1.25383183]
[1753831660904,0.36306,117970.0,117960.0,1.25383183]
[1753831661105,0.60366572,117970.0,117960.0,1.25383183]
[1753831662103,0.77322682,117970.0,117960.0,1.10154415]
[1753831670009,0.36306,117970.0,117960.0,1.10154415]
[1753831670308,0.60366572,117970.0,117960.0,1.10154415]
[1753831672215,0.77322682,117970.0,117960.0,1.10154415]
[1753831673916,0.60366572,117970.0,117960.0,1.10154415]
[1753831677320,0.60366572,117970.0,117960.0,1.25383183]
[1753831678208,0.60366572,117970.0,117960.0,1.10154415]
[1753831678612,0.77322682,117970.0,117960.0,1.10154415]
[1753831679017,0.60366572,117970.0,117960.0,1.10154415]
[1753831681021,0.77322682,117970.0,117960.0,1.10154415]
[1753831687430,0.60366572,117970.0,117960.0,1.10154415]
[1753831688131,0.77322682,117970.0,117960.0,1.10154415]
[1753831688430,0.77322682,117970.0,117960.0,0.86093843]
[1753831688631,0.77322682,117970.0,117960.0,1.10154415]
[1753831692334,0.60366572,117970.0,117960.0,1.10154415]
[1753831697336,0.60366572,117970.0,117960.0,1.08418112]
[1753831699839,0.60366572,117970.0,117960.0,1.2364688]
[1753831700639,0.77322682,117970.0,117960.0,1.2364688]
[1753831702337,0.77322682,117970.0,117960.0,1.08418112]
[1753831703740,0.77322682,117970.0,117960.0,0.8435754]
[1753831704140,0.77322682,117970.0,117960.0,1.08418112]
[1753831705743,0.77322682,117970.0,117960.0,0.1695754]
[1753831705932,0.4171355,117960.0,117950.0,0.44905158]
[1753831706131,1.01834694,117960.0,117950.0,0.32186538]
[1753831706435,1.01834694,117960.0,117950.0,0.8431377]
[1753831707342,0.77774122,117960.0,117950.0,0.8431377]
[1753831711339,0.4171355,117960.0,117950.0,0.8431377]
[1753831711541,0.75774122,117960.0,117950.0,0.8431377]
[1753831711842,0.75774122,117960.0,117950.0,0.99539625]
[1753831716550,0.75774122,117960.0,117950.0,1.08374342]
[1753831718046,0.75774122,117960.0,117950.0,1.23600197]
[1753831724547,0.75774122,117960.0,117950.0,1.08374342]